[Event "*** Titled Tuesday Blitz"]
[Site "Chess.com"]
[Date "2020.10.27"]
[Round "7"]
[White "KacperPolOK"]
[Black "Karateloru"]
[Result "0-1"]
[WhiteElo "2424"]
[BlackElo "2669"]
[TimeControl "180+1"]
[EndTime "11:15:01 PDT"]
[Termination "Karateloru won by resignation"]

1. e4 {[%clk 0:02:59.8]} 1... c5 {[%clk 0:02:59.3]} 2. Nc3 {[%clk 0:02:58.6]}
2... e6 {[%clk 0:02:59.4]} 3. g3 {[%clk 0:02:53.7]} 3... Nc6 {[%clk 0:02:59.7]}
4. Bg2 {[%clk 0:02:54]} 4... g6 {[%clk 0:03:00.2]} 5. d3 {[%clk 0:02:53.9]} 5...
Bg7 {[%clk 0:03:00.6]} 6. Nf3 {[%clk 0:02:53.8]} 6... Nge7 {[%clk 0:03:00.5]} 7.
O-O {[%clk 0:02:54.5]} 7... O-O {[%clk 0:03:00.3]} 8. Be3 {[%clk 0:02:54.3]}
8... d6 {[%clk 0:03:00.2]} 9. Qd2 {[%clk 0:02:54.1]} 9... Nd4 {[%clk 0:03:00.2]}
10. Nh4 {[%clk 0:02:53.3]} 10... Rb8 {[%clk 0:02:58]} 11. Rab1 {[%clk
0:02:52.2]} 11... Nec6 {[%clk 0:02:54.7]} 12. Ne2 {[%clk 0:02:51.3]} 12... Nxe2+
{[%clk 0:02:53.9]} 13. Qxe2 {[%clk 0:02:51.6]} 13... b5 {[%clk 0:02:50.1]} 14.
f4 {[%clk 0:02:48.3]} 14... Nd4 {[%clk 0:02:49.7]} 15. Qd2 {[%clk 0:02:48.1]}
15... Bb7 {[%clk 0:02:44]} 16. c3 {[%clk 0:02:47.8]} 16... Nc6 {[%clk
0:02:43.7]} 17. f5 {[%clk 0:02:48.2]} 17... Ne5 {[%clk 0:02:43.6]} 18. Bh6
{[%clk 0:02:38.7]} 18... exf5 {[%clk 0:02:40.2]} 19. exf5 {[%clk 0:02:28.5]}
19... Bxg2 {[%clk 0:02:39.7]} 20. Kxg2 {[%clk 0:02:14.5]} 20... f6 {[%clk
0:02:15.8]} 21. fxg6 {[%clk 0:02:06.2]} 21... hxg6 {[%clk 0:02:14.2]} 22. d4
{[%clk 0:02:06.5]} 22... Nc4 {[%clk 0:02:12.3]} 23. Qe3 {[%clk 0:01:43.4]} 23...
Nxe3+ {[%clk 0:02:11.6]} 0-1

[Event "*** Titled Tuesday Blitz"]
[Site "Chess.com"]
[Date "2020.10.27"]
[Round "7"]
[White "mapleaff"]
[Black "Lion-Al-Messi"]
[Result "0-1"]
[WhiteElo "2394"]
[BlackElo "2526"]
[TimeControl "180+1"]
[EndTime "11:15:02 PDT"]
[Termination "Lion-Al-Messi won by checkmate"]

1. d4 {[%clk 0:03:00.9]} 1... b6 {[%clk 0:03:00.9]} 2. Nf3 {[%clk 0:03:00.2]}
2... Bb7 {[%clk 0:03:01.8]} 3. e3 {[%clk 0:03:00.9]} 3... Nf6 {[%clk 0:03:00.6]}
4. Bd3 {[%clk 0:03:00.8]} 4... e6 {[%clk 0:03:00.9]} 5. O-O {[%clk 0:03:01.2]}
5... c5 {[%clk 0:03:01]} 6. c4 {[%clk 0:03:01.2]} 6... cxd4 {[%clk 0:03:00.5]}
7. exd4 {[%clk 0:03:02.1]} 7... Be7 {[%clk 0:03:01.3]} 8. Nc3 {[%clk 0:03:02.5]}
8... O-O {[%clk 0:03:01.7]} 9. Bg5 {[%clk 0:03:00.7]} 9... h6 {[%clk 0:03:01.1]}
10. Bh4 {[%clk 0:03:00.4]} 10... d6 {[%clk 0:03:01.4]} 11. Qe2 {[%clk
0:02:57.9]} 11... Nbd7 {[%clk 0:03:01.7]} 12. Rfe1 {[%clk 0:02:55.3]} 12... Re8
{[%clk 0:03:01.3]} 13. Rad1 {[%clk 0:02:52.3]} 13... Nf8 {[%clk 0:03:01.1]} 14.
Bb1 {[%clk 0:02:49.5]} 14... Rc8 {[%clk 0:03:00.3]} 15. Ne5 {[%clk 0:02:38.5]}
15... dxe5 {[%clk 0:02:56.5]} 16. dxe5 {[%clk 0:02:37.5]} 16... Nd5 {[%clk
0:02:56.4]} 17. cxd5 {[%clk 0:01:59]} 17... Bxh4 {[%clk 0:02:53]} 18. dxe6
{[%clk 0:01:44.8]} 18... Qc7 {[%clk 0:02:41.2]} 19. exf7+ {[%clk 0:01:42.4]}
19... Qxf7 {[%clk 0:02:40]} 20. Bc2 {[%clk 0:01:36.6]} 20... Kh8 {[%clk
0:02:34.7]} 21. Bb3 {[%clk 0:01:34.6]} 21... Qg6 {[%clk 0:02:33.5]} 22. Bc2
{[%clk 0:01:13.3]} 22... Qxg2# {[%clk 0:02:32.6]} 0-1

[Event "*** Titled Tuesday Blitz"]
[Site "Chess.com"]
[Date "2020.10.27"]
[Round "7"]
[White "Pultis"]
[Black "WanderingPuppet"]
[Result "1-0"]
[WhiteElo "2720"]
[BlackElo "2510"]
[TimeControl "180+1"]
[EndTime "11:15:06 PDT"]
[Termination "Pultis won by resignation"]

1. b3 {[%clk 0:03:00.9]} 1... d5 {[%clk 0:02:42.1]} 2. Bb2 {[%clk 0:03:01.1]}
2... Bg4 {[%clk 0:02:40.3]} 3. Nf3 {[%clk 0:03:01.3]} 3... Nd7 {[%clk
0:02:30.3]} 4. g3 {[%clk 0:02:57.6]} 4... Bxf3 {[%clk 0:02:27.8]} 5. exf3 {[%clk
0:02:58.5]} 5... e5 {[%clk 0:02:18.8]} 6. Bg2 {[%clk 0:02:58.6]} 6... Ngf6
{[%clk 0:02:17.2]} 7. O-O {[%clk 0:02:59]} 7... h5 {[%clk 0:02:16.1]} 8. Re1
{[%clk 0:02:58.8]} 8... Bd6 {[%clk 0:02:15.7]} 9. f4 {[%clk 0:02:58.4]} 9... e4
{[%clk 0:01:56.6]} 10. c4 {[%clk 0:02:57.7]} 10... c6 {[%clk 0:01:50.4]} 11. d3
{[%clk 0:02:57.8]} 11... O-O {[%clk 0:01:11.8]} 12. dxe4 {[%clk 0:02:57.1]}
12... Bb4 {[%clk 0:01:10.6]} 13. e5 {[%clk 0:02:57.2]} 13... Bxe1 {[%clk
0:01:05.1]} 14. exf6 {[%clk 0:02:57.1]} 14... Bb4 {[%clk 0:01:01.9]} 15. fxg7
{[%clk 0:02:57.1]} 1-0

[Event "*** Titled Tuesday Blitz"]
[Site "Chess.com"]
[Date "2020.10.27"]
[Round "7"]
[White "BogdanBelyakov89"]
[Black "Shahinyan_ChessMood"]
[Result "0-1"]
[WhiteElo "2585"]
[BlackElo "2771"]
[TimeControl "180+1"]
[EndTime "11:15:16 PDT"]
[Termination "Shahinyan_ChessMood won by checkmate"]

1. e4 {[%clk 0:03:00.9]} 1... d6 {[%clk 0:02:59.7]} 2. d4 {[%clk 0:03:00.4]}
2... Nf6 {[%clk 0:03:00.3]} 3. Nc3 {[%clk 0:03:00.8]} 3... e5 {[%clk 0:03:01]}
4. Nf3 {[%clk 0:03:01.2]} 4... Nbd7 {[%clk 0:03:01.4]} 5. Be2 {[%clk 0:03:00.3]}
5... Be7 {[%clk 0:03:01.4]} 6. O-O {[%clk 0:03:00.4]} 6... c6 {[%clk 0:03:00.9]}
7. a4 {[%clk 0:02:59.7]} 7... h6 {[%clk 0:02:57.9]} 8. Re1 {[%clk 0:02:58.1]}
8... Qc7 {[%clk 0:02:58.3]} 9. Bf1 {[%clk 0:02:57.6]} 9... Nf8 {[%clk
0:02:58.6]} 10. Rb1 {[%clk 0:02:56.6]} 10... g5 {[%clk 0:02:59]} 11. h3 {[%clk
0:02:53.4]} 11... Ng6 {[%clk 0:02:58.6]} 12. b4 {[%clk 0:02:53.1]} 12... g4
{[%clk 0:02:58.6]} 13. hxg4 {[%clk 0:02:52.5]} 13... Bxg4 {[%clk 0:02:59.5]} 14.
d5 {[%clk 0:02:50.5]} 14... Rg8 {[%clk 0:02:55.4]} 15. dxc6 {[%clk 0:02:48]}
15... bxc6 {[%clk 0:02:56.3]} 16. b5 {[%clk 0:02:47.9]} 16... Nh4 {[%clk
0:02:56.5]} 17. Be2 {[%clk 0:02:46.7]} 17... Nxg2 {[%clk 0:02:07.4]} 18. Kxg2
{[%clk 0:02:47.6]} 18... Bh3+ {[%clk 0:01:41.1]} 19. Kxh3 {[%clk 0:02:07.3]}
19... Qd7+ {[%clk 0:01:40.2]} 20. Kh2 {[%clk 0:02:07.7]} 20... Ng4+ {[%clk
0:01:40.4]} 21. Kg3 {[%clk 0:02:08]} 21... Ne3+ {[%clk 0:01:37.6]} 22. Ng5
{[%clk 0:02:03.9]} 22... Rxg5+ {[%clk 0:01:35.3]} 23. Kf3 {[%clk 0:02:04]} 23...
Qh3# {[%clk 0:01:33.7]} 0-1

[Event "*** Titled Tuesday Blitz"]
[Site "Chess.com"]
[Date "2020.10.27"]
[Round "7"]
[White "Iskusnyh"]
[Black "GoltsevDmitry2000"]
[Result "1-0"]
[WhiteElo "2567"]
[BlackElo "2686"]
[TimeControl "180+1"]
[EndTime "11:15:22 PDT"]
[Termination "Iskusnyh won by resignation"]

1. d4 {[%clk 0:03:00.9]} 1... d5 {[%clk 0:02:59.9]} 2. c4 {[%clk 0:03:00.9]}
2... c6 {[%clk 0:03:00.2]} 3. Nf3 {[%clk 0:03:00.7]} 3... Nf6 {[%clk 0:02:59.7]}
4. e3 {[%clk 0:03:01.1]} 4... Bf5 {[%clk 0:02:47.3]} 5. Nc3 {[%clk 0:03:00.7]}
5... e6 {[%clk 0:02:47.4]} 6. Nh4 {[%clk 0:03:00.8]} 6... Bg4 {[%clk 0:02:47]}
7. Qb3 {[%clk 0:02:59.2]} 7... Qb6 {[%clk 0:02:46.6]} 8. h3 {[%clk 0:02:58.6]}
8... Bh5 {[%clk 0:02:45.2]} 9. g4 {[%clk 0:02:58.5]} 9... Bg6 {[%clk 0:02:44.2]}
10. Nxg6 {[%clk 0:02:58.3]} 10... hxg6 {[%clk 0:02:36.7]} 11. Bg2 {[%clk
0:02:58.2]} 11... Bd6 {[%clk 0:02:35.5]} 12. c5 {[%clk 0:02:55.9]} 12... Qxb3
{[%clk 0:02:30.1]} 13. axb3 {[%clk 0:02:56.3]} 13... Bc7 {[%clk 0:02:30.7]} 14.
b4 {[%clk 0:02:56.5]} 14... e5 {[%clk 0:02:18.2]} 15. b5 {[%clk 0:02:55.5]}
15... Nbd7 {[%clk 0:02:18]} 16. b6 {[%clk 0:02:14.6]} 16... Bb8 {[%clk 0:02:06]}
17. b4 {[%clk 0:02:14.2]} 17... O-O {[%clk 0:02:04.5]} 18. b5 {[%clk 0:02:11.5]}
18... cxb5 {[%clk 0:01:42]} 19. Nxd5 {[%clk 0:02:03]} 1-0

[Event "*** Titled Tuesday Blitz"]
[Site "Chess.com"]
[Date "2020.10.27"]
[Round "7"]
[White "ChelsieMonica"]
[Black "pfalcon1949"]
[Result "1-0"]
[WhiteElo "2335"]
[BlackElo "2014"]
[TimeControl "180+1"]
[EndTime "11:15:29 PDT"]
[Termination "ChelsieMonica won by resignation"]

1. e4 {[%clk 0:03:00.9]} 1... c6 {[%clk 0:02:59.2]} 2. d4 {[%clk 0:03:00.9]}
2... d5 {[%clk 0:02:59.5]} 3. e5 {[%clk 0:03:01]} 3... Bf5 {[%clk 0:02:59.1]} 4.
g4 {[%clk 0:03:01.2]} 4... Be4 {[%clk 0:02:58.3]} 5. f3 {[%clk 0:03:00.8]} 5...
Bg6 {[%clk 0:02:58.9]} 6. h4 {[%clk 0:03:00.9]} 6... h5 {[%clk 0:02:58.3]} 7.
gxh5 {[%clk 0:02:56.9]} 7... Bxh5 {[%clk 0:02:54.2]} 8. Be2 {[%clk 0:02:57.1]}
8... e6 {[%clk 0:02:53.7]} 9. Bf4 {[%clk 0:02:53.4]} 9... Qb6 {[%clk 0:02:53.6]}
10. b3 {[%clk 0:02:52.1]} 10... c5 {[%clk 0:02:53]} 11. c3 {[%clk 0:02:51.4]}
11... Nc6 {[%clk 0:02:52.7]} 12. Be3 {[%clk 0:02:47.5]} 12... Nh6 {[%clk
0:02:50.2]} 13. f4 {[%clk 0:02:34]} 13... Bxe2 {[%clk 0:02:45.6]} 14. Nxe2
{[%clk 0:02:34.9]} 14... Nf5 {[%clk 0:02:45.2]} 15. Bf2 {[%clk 0:02:35.3]} 15...
cxd4 {[%clk 0:02:41.1]} 16. Nxd4 {[%clk 0:02:34.5]} 16... Ncxd4 {[%clk
0:02:40.6]} 17. cxd4 {[%clk 0:02:35.3]} 17... Bb4+ {[%clk 0:02:37.9]} 18. Kf1
{[%clk 0:02:35.6]} 18... Rc8 {[%clk 0:02:28.9]} 19. a3 {[%clk 0:02:35.5]} 19...
Bc3 {[%clk 0:02:26.6]} 20. Qc2 {[%clk 0:02:25.5]} 20... Qc7 {[%clk 0:01:52.9]}
21. Nxc3 {[%clk 0:02:23.8]} 21... Qxc3 {[%clk 0:01:52.9]} 22. Qxc3 {[%clk
0:02:20.4]} 22... Rxc3 {[%clk 0:01:53.8]} 23. Ke2 {[%clk 0:02:17.3]} 23... Rxb3
{[%clk 0:01:47.4]} 24. Rhb1 {[%clk 0:02:17.2]} 24... Rxb1 {[%clk 0:01:43.7]} 25.
Rxb1 {[%clk 0:02:18.1]} 25... b6 {[%clk 0:01:44.1]} 26. a4 {[%clk 0:02:18.3]}
26... Kd7 {[%clk 0:01:44.4]} 27. a5 {[%clk 0:02:18.7]} 27... Rb8 {[%clk
0:01:31.2]} 28. h5 {[%clk 0:02:17.2]} 28... Kc6 {[%clk 0:01:29.3]} 29. Kd3
{[%clk 0:02:16]} 29... Rb7 {[%clk 0:01:28.9]} 30. a6 {[%clk 0:02:13]} 30... Kd7
{[%clk 0:01:25]} 31. axb7 {[%clk 0:02:11.5]} 1-0

[Event "*** Titled Tuesday Blitz"]
[Site "Chess.com"]
[Date "2020.10.27"]
[Round "7"]
[White "gilbert_gm"]
[Black "Arfan48"]
[Result "1/2-1/2"]
[WhiteElo "2575"]
[BlackElo "2442"]
[TimeControl "180+1"]
[EndTime "11:16:03 PDT"]
[Termination "Game drawn by agreement"]

1. a3 {[%clk 0:03:00.9]} 1... g6 {[%clk 0:02:57.4]} 2. b4 {[%clk 0:02:55.8]}
2... Bg7 {[%clk 0:02:57.6]} 3. c3 {[%clk 0:02:52.2]} 3... d5 {[%clk 0:02:55.6]}
4. d4 {[%clk 0:02:51.4]} 4... Nf6 {[%clk 0:02:53.7]} 5. Bg5 {[%clk 0:02:48.7]}
5... Ne4 {[%clk 0:02:52.8]} 6. Bh4 {[%clk 0:02:43.9]} 6... O-O {[%clk
0:02:42.5]} 7. e3 {[%clk 0:02:36]} 7... a5 {[%clk 0:02:38.4]} 8. b5 {[%clk
0:02:29.1]} 8... c5 {[%clk 0:02:34.1]} 9. Bd3 {[%clk 0:02:17.7]} 9... Nd7 {[%clk
0:02:27.6]} 10. Ne2 {[%clk 0:02:13.2]} 10... Nd6 {[%clk 0:02:23.1]} 11. a4
{[%clk 0:02:10.9]} 11... cxd4 {[%clk 0:02:15.1]} 12. cxd4 {[%clk 0:02:10.9]}
12... Nb6 {[%clk 0:02:14.7]} 13. Nd2 {[%clk 0:02:10]} 13... Bf5 {[%clk
0:02:13.3]} 14. Nf3 {[%clk 0:02:02.1]} 14... Nbc4 {[%clk 0:02:02.2]} 15. Bxf5
{[%clk 0:01:56.7]} 15... Nxf5 {[%clk 0:02:01.8]} 16. Bg3 {[%clk 0:01:50]} 16...
Rc8 {[%clk 0:01:57.9]} 17. O-O {[%clk 0:01:48.6]} 17... e6 {[%clk 0:01:45.3]}
18. Qd3 {[%clk 0:01:38.8]} 1/2-1/2

[Event "*** Titled Tuesday Blitz"]
[Site "Chess.com"]
[Date "2020.10.27"]
[Round "7"]
[White "tlomigtlis"]
[Black "brunomorado"]
[Result "1-0"]
[WhiteElo "2594"]
[BlackElo "2418"]
[TimeControl "180+1"]
[EndTime "11:16:18 PDT"]
[Termination "tlomigtlis won by resignation"]

1. d4 {[%clk 0:03:00.9]} 1... d5 {[%clk 0:02:59.6]} 2. c4 {[%clk 0:03:00.3]}
2... c6 {[%clk 0:02:59.7]} 3. Nf3 {[%clk 0:02:59.7]} 3... Nf6 {[%clk 0:02:59.9]}
4. Nc3 {[%clk 0:02:59]} 4... e6 {[%clk 0:02:59.9]} 5. Bg5 {[%clk 0:02:59]} 5...
h6 {[%clk 0:03:00]} 6. Bh4 {[%clk 0:02:58.6]} 6... dxc4 {[%clk 0:02:59]} 7. e4
{[%clk 0:02:58.3]} 7... g5 {[%clk 0:02:59]} 8. Bg3 {[%clk 0:02:58.1]} 8... b5
{[%clk 0:02:59.7]} 9. Be2 {[%clk 0:02:57.3]} 9... Bb7 {[%clk 0:02:59.1]} 10. Qc2
{[%clk 0:02:57.3]} 10... Nbd7 {[%clk 0:02:51.4]} 11. Rd1 {[%clk 0:02:57.3]}
11... Nh5 {[%clk 0:02:41]} 12. d5 {[%clk 0:02:46.2]} 12... Nxg3 {[%clk
0:02:40.3]} 13. hxg3 {[%clk 0:02:47.1]} 13... Bg7 {[%clk 0:02:30.4]} 14. Kf1
{[%clk 0:02:25.8]} 14... a6 {[%clk 0:02:15.3]} 15. dxe6 {[%clk 0:02:15.3]} 15...
fxe6 {[%clk 0:02:14.8]} 16. e5 {[%clk 0:02:15.5]} 16... Qe7 {[%clk 0:02:09.5]}
17. Qg6+ {[%clk 0:02:11.6]} 17... Kf8 {[%clk 0:02:05.5]} 18. Ne4 {[%clk
0:02:08.5]} 18... Nxe5 {[%clk 0:01:43.8]} 19. Nxe5 {[%clk 0:02:08.2]} 19... Bxe5
{[%clk 0:01:44.7]} 20. Rxh6 {[%clk 0:02:08]} 20... Rxh6 {[%clk 0:01:43.7]} 21.
Qxh6+ {[%clk 0:02:08.9]} 21... Bg7 {[%clk 0:01:41.6]} 22. Qg6 {[%clk 0:02:06.7]}
22... c5 {[%clk 0:01:01.8]} 23. Nxg5 {[%clk 0:02:05]} 23... Re8 {[%clk
0:00:54.3]} 24. Nh7+ {[%clk 0:01:58.9]} 24... Kg8 {[%clk 0:00:53.5]} 25. Rd7
{[%clk 0:01:58.9]} 1-0

[Event "*** Titled Tuesday Blitz"]
[Site "Chess.com"]
[Date "2020.10.27"]
[Round "7"]
[White "winniethepooh04"]
[Black "JoliyRoger"]
[Result "1-0"]
[WhiteElo "2225"]
[BlackElo "2372"]
[TimeControl "180+1"]
[EndTime "11:16:23 PDT"]
[Termination "winniethepooh04 won on time"]

1. e4 {[%clk 0:02:56.2]} 1... c6 {[%clk 0:02:59.9]} 2. Nf3 {[%clk 0:02:55]} 2...
d5 {[%clk 0:03:00.8]} 3. Nc3 {[%clk 0:02:54.9]} 3... Nf6 {[%clk 0:03:00.2]} 4.
exd5 {[%clk 0:02:54.1]} 4... cxd5 {[%clk 0:02:59.9]} 5. d4 {[%clk 0:02:54.1]}
5... Nc6 {[%clk 0:03:00.8]} 6. h3 {[%clk 0:02:49.9]} 6... Bf5 {[%clk 0:02:56.6]}
7. Bb5 {[%clk 0:02:48.1]} 7... a6 {[%clk 0:02:54.7]} 8. Bxc6+ {[%clk 0:02:48.4]}
8... bxc6 {[%clk 0:02:55.2]} 9. Ne5 {[%clk 0:02:49.3]} 9... Qc8 {[%clk
0:02:52.8]} 10. O-O {[%clk 0:02:48.8]} 10... e6 {[%clk 0:02:50.4]} 11. a4 {[%clk
0:02:44.4]} 11... Be7 {[%clk 0:02:48.6]} 12. a5 {[%clk 0:02:44.7]} 12... O-O
{[%clk 0:02:46.7]} 13. Na4 {[%clk 0:02:45.1]} 13... Ra7 {[%clk 0:02:37.6]} 14.
Nb6 {[%clk 0:02:45.3]} 14... Qe8 {[%clk 0:02:33.8]} 15. Be3 {[%clk 0:02:34.1]}
15... Ne4 {[%clk 0:02:29.3]} 16. c4 {[%clk 0:02:31.9]} 16... f6 {[%clk 0:02:27]}
17. Ned7 {[%clk 0:02:27.9]} 17... Rxd7 {[%clk 0:02:25.9]} 18. Nxd7 {[%clk
0:02:25.7]} 18... Qxd7 {[%clk 0:02:26.8]} 19. cxd5 {[%clk 0:02:24.7]} 19... Qe8
{[%clk 0:02:27.7]} 20. dxc6 {[%clk 0:02:20.5]} 20... Qd7 {[%clk 0:02:28.6]} 21.
cxd7 {[%clk 0:02:20.3]} 1-0

[Event "*** Titled Tuesday Blitz"]
[Site "Chess.com"]
[Date "2020.10.27"]
[Round "7"]
[White "emiliochess"]
[Black "wonderfultime"]
[Result "0-1"]
[WhiteElo "2348"]
[BlackElo "2920"]
[TimeControl "180+1"]
[EndTime "11:16:59 PDT"]
[Termination "wonderfultime won by resignation"]

1. d4 {[%clk 0:03:00.9]} 1... d5 {[%clk 0:02:59.8]} 2. Bf4 {[%clk 0:03:01.1]}
2... Nf6 {[%clk 0:02:59.9]} 3. e3 {[%clk 0:03:01.4]} 3... e6 {[%clk 0:02:59.7]}
4. Bd3 {[%clk 0:03:01.1]} 4... Bd6 {[%clk 0:02:58.9]} 5. Bg3 {[%clk 0:03:01.4]}
5... c5 {[%clk 0:02:58.4]} 6. c3 {[%clk 0:03:01.1]} 6... O-O {[%clk 0:02:58.1]}
7. Nd2 {[%clk 0:03:01.1]} 7... Qc7 {[%clk 0:02:58.6]} 8. Ngf3 {[%clk 0:03:00.5]}
8... Nbd7 {[%clk 0:02:58.5]} 9. Qe2 {[%clk 0:02:57.8]} 9... e5 {[%clk
0:02:52.1]} 10. e4 {[%clk 0:02:46.5]} 10... dxe4 {[%clk 0:02:43.6]} 11. Nxe4
{[%clk 0:02:47.4]} 11... Nxe4 {[%clk 0:02:44.2]} 12. Bxe4 {[%clk 0:02:47.4]}
12... exd4 {[%clk 0:02:32.1]} 13. Bxd6 {[%clk 0:02:35.3]} 13... Qxd6 {[%clk
0:02:31.3]} 14. cxd4 {[%clk 0:02:35.7]} 14... Nf6 {[%clk 0:02:25.4]} 15. O-O-O
{[%clk 0:01:33.9]} 15... Re8 {[%clk 0:02:10.8]} 16. Nd2 {[%clk 0:01:32.5]} 16...
Qxd4 {[%clk 0:02:07.4]} 17. f3 {[%clk 0:01:32.8]} 17... Be6 {[%clk 0:01:53.9]}
18. Kb1 {[%clk 0:01:13.1]} 18... Qa4 {[%clk 0:01:51.5]} 19. a3 {[%clk
0:01:11.3]} 19... Nxe4 {[%clk 0:01:49.9]} 20. fxe4 {[%clk 0:01:11.7]} 20... b5
{[%clk 0:01:50]} 21. Qe3 {[%clk 0:00:44.5]} 21... b4 {[%clk 0:01:43.2]} 22. Rc1
{[%clk 0:00:25.8]} 22... Rab8 {[%clk 0:01:41.9]} 23. Ka1 {[%clk 0:00:23.1]}
23... Red8 {[%clk 0:01:40.7]} 24. Nb1 {[%clk 0:00:20.1]} 24... c4 {[%clk
0:01:37.1]} 25. Rhd1 {[%clk 0:00:19.8]} 25... Rxd1 {[%clk 0:01:33.9]} 26. Rxd1
{[%clk 0:00:20.7]} 26... Qxd1 {[%clk 0:01:34.8]} 0-1

[Event "*** Titled Tuesday Blitz"]
[Site "Chess.com"]
[Date "2020.10.27"]
[Round "7"]
[White "queen_iryna"]
[Black "parintele_chess"]
[Result "1-0"]
[WhiteElo "2295"]
[BlackElo "2143"]
[TimeControl "180+1"]
[EndTime "11:17:02 PDT"]
[Termination "queen_iryna won by resignation"]

1. e4 {[%clk 0:03:00.9]} 1... d6 {[%clk 0:02:58.4]} 2. d4 {[%clk 0:03:00.5]}
2... Nf6 {[%clk 0:02:58.6]} 3. Nc3 {[%clk 0:03:00]} 3... g6 {[%clk 0:02:58.8]}
4. Be3 {[%clk 0:02:58.2]} 4... Bg7 {[%clk 0:02:58.6]} 5. h3 {[%clk 0:02:58.4]}
5... c6 {[%clk 0:02:58.4]} 6. Qd2 {[%clk 0:02:55.7]} 6... b5 {[%clk 0:02:58.2]}
7. Bd3 {[%clk 0:02:53.6]} 7... Qa5 {[%clk 0:02:55.9]} 8. Nf3 {[%clk 0:02:49.7]}
8... Nbd7 {[%clk 0:02:55.1]} 9. O-O {[%clk 0:02:31.5]} 9... a6 {[%clk
0:02:54.6]} 10. Bh6 {[%clk 0:02:30.1]} 10... O-O {[%clk 0:02:49.8]} 11. Bxg7
{[%clk 0:02:29]} 11... Kxg7 {[%clk 0:02:50.7]} 12. e5 {[%clk 0:02:25.2]} 12...
Nd5 {[%clk 0:02:49.3]} 13. Rfe1 {[%clk 0:01:59.7]} 13... Nxc3 {[%clk 0:02:34.8]}
14. bxc3 {[%clk 0:01:59]} 14... Nb6 {[%clk 0:02:31.8]} 15. Qg5 {[%clk 0:01:28]}
15... f6 {[%clk 0:01:56.1]} 16. exf6+ {[%clk 0:00:45.1]} 16... exf6 {[%clk
0:01:56.9]} 17. Re7+ {[%clk 0:00:41.3]} 17... Rf7 {[%clk 0:01:56.4]} 18. Rxf7+
{[%clk 0:00:40.7]} 18... Kxf7 {[%clk 0:01:57.3]} 19. Qh6 {[%clk 0:00:41.3]}
19... Qxc3 {[%clk 0:01:25.9]} 20. Qxh7+ {[%clk 0:00:40.4]} 20... Ke6 {[%clk
0:01:24.2]} 21. Re1+ {[%clk 0:00:39.7]} 21... Kd5 {[%clk 0:01:22.2]} 22. Qf7+
{[%clk 0:00:32.7]} 1-0

[Event "*** Titled Tuesday Blitz"]
[Site "Chess.com"]
[Date "2020.10.27"]
[Round "7"]
[White "PauloCesarCosta_sad"]
[Black "Mikasinski"]
[Result "1-0"]
[WhiteElo "2321"]
[BlackElo "2483"]
[TimeControl "180+1"]
[EndTime "11:17:03 PDT"]
[Termination "PauloCesarCosta_sad won by resignation"]

1. Nf3 {[%clk 0:03:00.9]} 1... Nf6 {[%clk 0:02:59.5]} 2. c4 {[%clk 0:02:59.2]}
2... g6 {[%clk 0:02:59.5]} 3. d4 {[%clk 0:02:57.7]} 3... Bg7 {[%clk 0:03:00.4]}
4. Nc3 {[%clk 0:02:58.4]} 4... d6 {[%clk 0:03:01.2]} 5. Bg5 {[%clk 0:02:58.1]}
5... O-O {[%clk 0:03:01.5]} 6. e3 {[%clk 0:02:47.1]} 6... c5 {[%clk 0:02:58.7]}
7. Be2 {[%clk 0:02:36.8]} 7... h6 {[%clk 0:02:35.5]} 8. Bxf6 {[%clk 0:02:36.8]}
8... Bxf6 {[%clk 0:02:34.5]} 9. O-O {[%clk 0:02:37.7]} 9... cxd4 {[%clk
0:02:33.9]} 10. exd4 {[%clk 0:02:25.4]} 10... Bg7 {[%clk 0:02:33.9]} 11. Re1
{[%clk 0:02:18.2]} 11... Nc6 {[%clk 0:02:31.1]} 12. Qd2 {[%clk 0:02:18.1]} 12...
e5 {[%clk 0:02:22.4]} 13. Rad1 {[%clk 0:02:07.7]} 13... exd4 {[%clk 0:02:19.5]}
14. Nb5 {[%clk 0:02:07.8]} 14... Re8 {[%clk 0:02:07.7]} 15. Nbxd4 {[%clk
0:02:05.3]} 15... Ne5 {[%clk 0:02:01.6]} 16. Nb5 {[%clk 0:01:59.3]} 16... Nxf3+
{[%clk 0:01:45.8]} 17. Bxf3 {[%clk 0:01:58.2]} 17... Rxe1+ {[%clk 0:01:46.7]}
18. Rxe1 {[%clk 0:01:48.7]} 18... a6 {[%clk 0:01:46.7]} 19. Nxd6 {[%clk
0:01:39]} 19... Bf8 {[%clk 0:01:34.5]} 20. Re8 {[%clk 0:01:31.3]} 20... Qd7
{[%clk 0:01:33.7]} 21. c5 {[%clk 0:01:24.1]} 21... Kg7 {[%clk 0:01:23.2]} 22.
Qd4+ {[%clk 0:01:19.7]} 22... f6 {[%clk 0:01:21.7]} 23. Rxf8 {[%clk 0:01:07.5]}
23... Kxf8 {[%clk 0:01:20.4]} 24. Qxf6+ {[%clk 0:01:08.1]} 24... Kg8 {[%clk
0:01:15.6]} 25. Qxg6+ {[%clk 0:01:08.4]} 25... Qg7 {[%clk 0:01:10.4]} 26. Bd5+
{[%clk 0:01:08.6]} 26... Kh8 {[%clk 0:01:08.5]} 27. Qe8+ {[%clk 0:00:54.2]}
27... Kh7 {[%clk 0:01:06.2]} 28. Be4+ {[%clk 0:00:54.4]} 1-0